bitfinex/quotes_BTCUSD_20250127
["timestamp","ask_amount","ask_price","bid_price","bid_amount"]
[1737990554991,0.16557511,101800.0,101790.0,0.05420825]
[1737990555202,0.01822804,101800.0,101790.0,0.13360825]
[1737990555419,0.00922804,101800.0,101790.0,0.13360825]
[1737990555635,0.26292233,101800.0,101790.0,0.04925921]
[1737990555848,0.41169429,101800.0,101790.0,0.04925921]
[1737990556060,0.40269429,101800.0,101790.0,0.04925921]
[1737990556497,0.41169429,101800.0,101790.0,0.04925921]
[1737990556718,0.40269429,101800.0,101790.0,0.04916985]
[1737990556966,0.147362,101790.0,101770.0,0.0795416]
[1737990557211,0.147362,101790.0,101780.0,0.00029045]
[1737990557212,0.6730326,101790.0,101780.0,0.00029045]
[1737990557426,3.26860353,101790.0,101780.0,0.00029045]
[1737990557633,0.157376,101780.0,101770.0,0.0001416]
[1737990557879,0.25472329,101780.0,101770.0,0.0006367]
[1737990558093,0.3073227,101780.0,101770.0,0.0006367]
[1737990558303,0.2873227,101780.0,101770.0,0.0006367]
[1737990558515,0.2773227,101780.0,101770.0,0.0006367]
[1737990558716,0.24472329,101780.0,101770.0,0.0006367]
[1737990559140,0.39472329,101780.0,101770.0,0.0006367]
[1737990559987,0.4473227,101780.0,101770.0,0.0006367]
[1737990560196,0.39472329,101780.0,101770.0,0.0006367]
[1737990560402,0.42345739,101780.0,101770.0,0.0006367]
[1737990560580,0.27345739,101780.0,101770.0,0.0006367]
[1737990560788,0.28245739,101780.0,101770.0,0.0006367]
[1737990561040,0.27345739,101780.0,101770.0,0.0006367]
[1737990561287,0.28245739,101780.0,101770.0,0.0006367]
[1737990561533,0.29374252,101780.0,101770.0,0.0006367]
[1737990561810,0.28474252,101780.0,101770.0,0.0006367]
[1737990562057,0.14636652,101780.0,101770.0,0.0006367]
[1737990562312,0.11763242,101780.0,101770.0,0.1480277]
[1737990562551,0.11886075,101780.0,101770.0,0.0006367]
[1737990562759,0.02151346,101780.0,101770.0,0.2236277]
[1737990562975,0.02151346,101780.0,101770.0,0.30005165]
[1737990564110,0.02151346,101780.0,101770.0,0.2236277]
[1737990564329,0.03051346,101780.0,101770.0,0.2236277]
[1737990564710,0.00122833,101780.0,101770.0,0.2236277]
[1737990564915,0.007,101780.0,101770.0,0.4201487]
[1737990565243,0.016,101780.0,101770.0,0.2236277]
[1737990565470,0.016,101780.0,101770.0,0.28039765]
[1737990565687,0.016,101780.0,101770.0,0.32979765]
[1737990565882,0.163376,101780.0,101770.0,0.1256367]
[1737990566106,0.26163026,101780.0,101770.0,0.0500367]
[1737990566321,0.26072329,101780.0,101770.0,0.0500367]
[1737990566956,0.11334729,101780.0,101770.0,0.0500367]
[1737990567169,0.01690697,101780.0,101770.0,0.23683975]
[1737990567381,0.016,101780.0,101770.0,0.23683975]
[1737990568026,0.016,101780.0,101770.0,0.1974277]
[1737990568230,0.16428297,101780.0,101770.0,0.0500367]
[1737990568651,0.26163026,101780.0,101770.0,0.0500367]
[1737990568858,0.009,101780.0,101770.0,0.1974277]
[1737990569063,0.343856,101790.0,101770.0,0.3939487]
[1737990569284,0.57112789,101800.0,101770.0,0.66427135]
[1737990569534,0.001,101780.0,101770.0,0.27122935]
[1737990569783,0.00090697,101790.0,101780.0,0.147376]
[1737990570070,0.54019,101820.0,101790.0,0.421434]
[1737990570372,0.63665464,101820.0,101800.0,0.147347]
[1737990570566,0.36554662,101830.0,101810.0,0.147332]
[1737990570772,0.36554662,101830.0,101800.0,0.3935]
[1737990570773,0.63749229,101830.0,101800.0,0.589953]
[1737990570976,0.44107729,101830.0,101800.0,0.68609043]
[1737990571187,0.01992664,101840.0,101820.0,0.14731]
[1737990571395,0.63256845,101850.0,101820.0,0.14731]
[1737990571396,0.56184162,101850.0,101820.0,0.196415]
[1737990571615,0.47459733,101850.0,101830.0,0.147301]
[1737990571837,0.45278071,101850.0,101820.0,0.54028079]
[1737990572043,0.45278071,101850.0,101840.0,0.193189]
[1737990572044,0.01177842,101850.0,101840.0,0.193189]
[1737990572269,0.1670412,101860.0,101840.0,0.193189]
[1737990572472,0.44096129,101860.0,101840.0,0.389573]
[1737990572683,0.09734729,101860.0,101840.0,0.389573]
[1737990572980,0.03136978,101870.0,101860.0,0.616292]
[1737990573225,0.0221142,101890.0,101880.0,0.297232]
[1737990573444,0.00029758,101890.0,101880.0,0.39457929]
[1737990573659,0.00029758,101890.0,101880.0,0.44207929]
[1737990574108,0.02211441,101910.0,101900.0,0.147203]
[1737990574348,0.02260799,101910.0,101900.0,0.57840685]
[1737990574546,0.02260799,101910.0,101900.0,0.57742559]
[1737990574759,0.00079137,101910.0,101900.0,0.57742559]
[1737990575188,0.00079137,101910.0,101900.0,0.5775787]
[1737990575401,0.00079137,101910.0,101900.0,0.48023141]
[1737990576247,0.00079137,101910.0,101900.0,0.5785787]
[1737990576458,0.00179137,101910.0,101900.0,0.5785787]
[1737990577781,0.00179137,101910.0,101900.0,0.5246034]
[1737990578022,0.00179137,101910.0,101900.0,0.13005311]
[1737990578657,0.51342149,101910.0,101900.0,0.00115311]
[1737990578871,0.66342149,101910.0,101900.0,0.00115311]
[1737990579731,0.70542149,101910.0,101900.0,0.00015311]
[1737990580159,0.71442149,101910.0,101900.0,0.00015311]
[1737990580389,0.7470209,101910.0,101900.0,0.00015311]
[1737990581078,0.71542149,101910.0,101900.0,0.00015311]
[1737990581287,2.5393209,101910.0,101900.0,0.00015311]
[1737990581497,0.02,101890.0,101850.0,0.13110752]
[1737990581713,0.343584,101870.0,101850.0,0.0475]
[1737990581928,0.63727029,101870.0,101850.0,0.0475]
[1737990582182,0.44093129,101870.0,101850.0,0.12008471]
[1737990582428,0.63726929,101870.0,101850.0,0.12008471]
[1737990582641,0.343565,101880.0,101860.0,0.147259]
[1737990582845,0.343565,101880.0,101850.0,0.561059]
[1737990583055,0.00014794,101880.0,101870.0,0.147241]
[1737990583312,0.00014794,101880.0,101870.0,0.171798]
[1737990583939,0.14737994,101880.0,101870.0,0.024557]
[1737990584149,0.00814794,101880.0,101850.0,0.51279471]
[1737990584353,0.00014794,101880.0,101860.0,0.343602]
[1737990584558,0.24473823,101880.0,101860.0,0.147258]
[1737990584784,0.25373823,101880.0,101860.0,0.147258]
[1737990584999,0.00914794,101880.0,101870.0,0.147246]
[1737990585213,0.00914794,101880.0,101850.0,0.46643571]
[1737990585418,0.44093029,101870.0,101850.0,0.41735871]
[1737990585616,0.49000529,101870.0,101850.0,0.0475]
[1737990585826,0.14726,101860.0,101850.0,0.0475]
[1737990586038,0.63725929,101870.0,101850.0,0.0475]
[1737990586246,0.24460129,101870.0,101850.0,0.391141]
[1737990586650,0.39308552,101880.0,101850.0,0.391131]
[1737990586651,0.00644552,101880.0,101850.0,0.391131]
[1737990586854,0.24459529,101870.0,101850.0,0.1139408]
[1737990587061,0.44093329,101870.0,101850.0,0.1139408]
[1737990587275,0.44094329,101870.0,101850.0,0.1139408]
[1737990587470,0.63728829,101870.0,101850.0,0.0475]
[1737990587682,0.83362929,101870.0,101850.0,0.0475]
[1737990587890,0.14726,101860.0,101850.0,0.0475]
[1737990588098,0.24460729,101860.0,101850.0,0.0475]
[1737990588336,0.147289,101840.0,101830.0,0.0001417]
[1737990588886,0.24463629,101840.0,101830.0,0.0001417]
[1737990590178,0.25363629,101840.0,101830.0,0.0001417]
[1737990590595,0.4592357,101840.0,101830.0,0.0001417]
[1737990590793,0.4822357,101840.0,101830.0,0.0001417]
[1737990591023,0.7229357,101840.0,101830.0,0.0001417]
[1737990591433,0.7139357,101840.0,101830.0,0.0001417]
[1737990591628,0.5753357,101840.0,101830.0,0.0001417]
[1737990591859,0.5843357,101840.0,101830.0,0.0001417]
[1737990592585,0.55173629,101840.0,101830.0,0.0001417]
[1737990592828,0.5843357,101840.0,101830.0,0.0001417]
[1737990593215,0.42663629,101840.0,101830.0,0.0001417]
[1737990593421,0.39963629,101840.0,101830.0,0.0001417]
[1737990593967,0.42542742,101840.0,101830.0,0.0001417]
[1737990594172,0.28442742,101840.0,101830.0,0.0001417]
[1737990594378,0.43442742,101840.0,101830.0,0.0001417]
[1737990594841,0.44342742,101840.0,101830.0,0.0001417]
[1737990595497,0.43442742,101840.0,101830.0,0.0001417]
[1737990596662,0.16760045,101840.0,101830.0,0.0001417]
[1737990596862,0.26494774,101840.0,101830.0,0.0001417]
[1737990597914,0.11765874,101840.0,101830.0,0.0001417]
[1737990598126,0.01131145,101840.0,101830.0,0.0001417]
[1737990598338,0.02031145,101840.0,101830.0,0.2739457]
[1737990598551,0.018,101840.0,101830.0,0.37129299]
[1737990598754,0.018,101840.0,101830.0,0.46864028]
[1737990599360,0.009,101840.0,101830.0,0.46864028]
[1737990599566,0.009,101840.0,101830.0,0.2739457]
[1737990599817,0.10634729,101840.0,101830.0,0.1266417]
[1737990600089,0.25363629,101840.0,101830.0,0.1266417]
[1737990600577,0.40363629,101840.0,101830.0,0.0489417]
[1737990600848,0.39463629,101840.0,101830.0,0.0001417]
[1737990601341,0.4472357,101840.0,101830.0,0.0001417]
[1737990601595,0.28709483,101820.0,101780.0,0.0001418]
[1737990601849,0.147362,101790.0,101780.0,0.0001418]
[1737990602059,0.24470929,101790.0,101780.0,0.00029059]
[1737990602495,0.147359,101800.0,101780.0,0.14766659]
[1737990602703,0.147349,101800.0,101780.0,0.20476721]
[1737990602915,0.540243,101810.0,101780.0,0.34415959]
[1737990603123,0.83404629,101810.0,101780.0,0.54065259]
[1737990603331,0.64917931,101810.0,101780.0,0.54065259]
[1737990603511,0.45272431,101810.0,101780.0,0.34415959]
[1737990603762,0.009,101790.0,101780.0,0.14766659]
[1737990603997,0.009,101790.0,101780.0,0.19002781]
[1737990604419,0.009,101790.0,101780.0,0.00029059]
[1737990604627,0.009,101790.0,101780.0,0.14766659]
[1737990605038,0.013,101790.0,101780.0,0.14766659]
[1737990605457,0.009,101790.0,101780.0,0.29864904]
[1737990605664,0.15892202,101810.0,101790.0,0.343824]
[1737990605876,0.35536602,101810.0,101790.0,0.343824]
[1737990606082,0.540221,101810.0,101790.0,0.343824]
[1737990606294,0.540221,101810.0,101790.0,0.343784]
[1737990606506,0.156333,101810.0,101790.0,0.43248976]
[1737990606723,0.009,101810.0,101800.0,0.147347]
[1737990607151,0.147321,101820.0,101800.0,0.147347]
[1737990607358,0.09734729,101810.0,101790.0,0.08870576]
[1737990607579,0.29379829,101810.0,101780.0,0.00029059]
[1737990607807,0.297362,101790.0,101780.0,0.00029059]
[1737990608012,0.39470929,101790.0,101780.0,0.00029059]
[1737990609126,0.1755268,101810.0,101790.0,0.343823]
[1737990609369,0.196435,101820.0,101800.0,0.147342]
[1737990609586,0.343755,101820.0,101800.0,0.41551663]
[1737990609810,4e-05,101810.0,101800.0,0.26817263]
[1737990610692,0.00904,101810.0,101800.0,0.26817263]
[1737990611148,4e-05,101810.0,101800.0,0.80561475]
[1737990611362,4e-05,101810.0,101800.0,0.85551475]
[1737990611583,0.00033736,101810.0,101800.0,0.85551475]
[1737990611799,0.00033736,101810.0,101800.0,0.396359]
[1737990612015,0.00033736,101810.0,101800.0,0.49370629]
[1737990612228,0.00033736,101810.0,101800.0,0.51670629]
[1737990612448,0.00033736,101810.0,101800.0,0.49370629]
[1737990612876,0.00033736,101810.0,101800.0,0.396359]
[1737990613092,0.00133736,101810.0,101800.0,0.197247]
[1737990613308,0.14767036,101810.0,101800.0,0.0499]
[1737990613538,0.00533736,101810.0,101800.0,0.347247]
[1737990613795,3.6e-07,101810.0,101800.0,0.73468912]
[1737990614006,0.147261,101860.0,101840.0,0.343664]
[1737990614223,0.44095629,101860.0,101840.0,0.147282]
[1737990614657,0.343644,101850.0,101830.0,0.1473]
[1737990614871,0.09734729,101850.0,101830.0,0.1473]
[1737990615109,0.20756376,101870.0,101850.0,0.00111285]
[1737990615339,0.20756376,101870.0,101850.0,0.14838685]
[1737990615340,0.35482176,101870.0,101850.0,0.14838685]
[1737990615568,0.14726,101860.0,101850.0,0.00111285]
[1737990615780,0.64850705,101870.0,101850.0,0.00111285]
[1737990615989,0.45216905,101870.0,101850.0,0.14838185]
[1737990616204,0.01122576,101870.0,101860.0,0.14726]
[1737990616425,0.00029758,101870.0,101860.0,0.24460729]
[1737990616652,0.00029758,101870.0,101860.0,0.68470212]
[1737990616863,0.02259203,101870.0,101860.0,0.66170212]
[1737990617074,0.03159203,101870.0,101860.0,0.39460729]
[1737990617288,0.02759203,101870.0,101860.0,0.49195458]
[1737990617499,0.01859203,101870.0,101860.0,0.49195458]
[1737990617928,0.00029758,101870.0,101860.0,0.29926]
[1737990618150,0.00033758,101870.0,101860.0,0.29926]
[1737990618376,0.00033758,101870.0,101860.0,0.002]
[1737990618573,0.24493087,101870.0,101860.0,0.002]
[1737990619013,0.39493087,101870.0,101860.0,0.002]
[1737990619269,0.40224135,101870.0,101860.0,0.002]
[1737990619487,0.40924135,101870.0,101860.0,0.003]
[1737990619924,0.15,101860.0,101850.0,0.00111285]
[1737990620143,0.39460729,101860.0,101850.0,0.00111285]
[1737990620585,0.55439139,101870.0,101850.0,0.14838685]
[1737990620786,0.00033758,101870.0,101850.0,0.44185863]
[1737990620995,0.14758558,101870.0,101850.0,0.44185863]
[1737990621204,0.35191458,101870.0,101860.0,0.001]
[1737990621450,0.44926187,101870.0,101860.0,0.001]
[1737990621660,0.14726,101860.0,101850.0,0.00111285]
[1737990621870,0.64561087,101870.0,101850.0,0.14938685]
[1737990622081,0.15559358,101870.0,101850.0,0.61106093]
[1737990622297,0.35192258,101870.0,101850.0,0.41469393]
[1737990622514,0.00833758,101870.0,101850.0,0.41468493]
[1737990622727,0.00833758,101870.0,101860.0,0.14726]
[1737990622936,0.00833758,101870.0,101860.0,0.22956]
[1737990623439,0.00233758,101870.0,101860.0,0.84607175]
[1737990623702,0.00029758,101880.0,101870.0,0.170246]
[1737990623929,0.00044552,101880.0,101870.0,0.26857467]
[1737990624144,0.24502481,101880.0,101860.0,0.50596063]
[1737990624384,0.007,101870.0,101860.0,0.27716]
[1737990624589,0.154246,101870.0,101860.0,0.0466]
[1737990624810,0.154246,101870.0,101860.0,0.006]
[1737990624811,0.40159329,101870.0,101860.0,0.006]
[1737990625034,0.16726,101860.0,101850.0,0.00111285]
[1737990625261,0.343724,101830.0,101810.0,0.1254415]
[1737990625476,0.44107129,101830.0,101810.0,0.4692165]
[1737990625702,0.196349,101860.0,101810.0,0.31382397]
[1737990625916,0.44096629,101860.0,101830.0,0.196405]
[1737990626132,0.147295,101840.0,101820.0,0.343723]
[1737990626388,0.63742529,101840.0,101820.0,0.147318]
[1737990626655,0.29376229,101830.0,101820.0,0.00014879]
[1737990626909,0.44107729,101830.0,101820.0,0.00014879]
[1737990627133,0.15,101860.0,101830.0,0.001]
[1737990627340,0.44100729,101850.0,101830.0,0.148303]
[1737990627551,0.44100729,101850.0,101830.0,0.37919498]
[1737990627793,0.24462229,101850.0,101830.0,0.37819498]
[1737990628006,0.09734729,101850.0,101840.0,0.147289]
[1737990628226,0.147262,101860.0,101840.0,0.34367]
[1737990628433,0.45182301,101860.0,101840.0,0.540047]
[1737990628644,0.46082701,101860.0,101840.0,0.420759]
[1737990628857,0.45182701,101860.0,101840.0,0.617136]
[1737990629299,0.009,101850.0,101840.0,0.224382]
[1737990631211,0.10821301,101860.0,101840.0,0.224382]
[1737990631429,0.002,101850.0,101830.0,0.23087498]
[1737990631655,0.147304,101830.0,101820.0,0.00014879]
[1737990631872,0.343701,101840.0,101820.0,0.14746279]
[1737990632097,0.147304,101830.0,101820.0,0.00366641]
[1737990632307,0.24465129,101830.0,101820.0,0.00366641]
[1737990633945,0.343698,101840.0,101820.0,0.15098441]
[1737990634153,0.09734729,101840.0,101830.0,0.147304]
[1737990634415,0.21021672,101860.0,101840.0,0.343665]
[1737990634416,0.35749072,101860.0,101840.0,0.343665]
[1737990634631,0.147276,101850.0,101830.0,0.62143737]
[1737990634833,0.63736829,101850.0,101830.0,0.225093]
[1737990634972,0.63736629,101850.0,101830.0,0.421497]
[1737990635169,0.68647329,101850.0,101830.0,0.16300855]
[1737990635370,0.147304,101830.0,101820.0,0.00014879]
[1737990635573,0.24465129,101830.0,101820.0,0.00014879]
[1737990636504,0.39465129,101830.0,101820.0,0.00014879]
[1737990637246,0.196369,101850.0,101830.0,0.147301]
[1737990637450,0.63737329,101850.0,101830.0,0.17677778]
[1737990637655,0.24463629,101840.0,101830.0,0.02947678]
[1737990637818,0.63737529,101850.0,101830.0,0.37318278]
[1737990638021,0.09734729,101850.0,101830.0,0.56957778]
[1737990638226,0.44100029,101850.0,101830.0,0.56957078]
[1737990638474,0.64636929,101850.0,101830.0,0.37417578]
[1737990638769,0.24463629,101840.0,101830.0,0.001]
[1737990639821,0.147304,101830.0,101820.0,0.00014879]
[1737990640025,0.24465129,101830.0,101820.0,0.00014879]
[1737990641069,0.739205,101840.0,101820.0,0.34731452]
[1737990641070,0.3437,101840.0,101820.0,0.34731452]
[1737990641270,0.20736213,101850.0,101830.0,0.147303]
[1737990641271,0.55102713,101850.0,101830.0,0.147303]
[1737990641599,0.147304,101830.0,101820.0,0.03489439]
[1737990641812,0.24465129,101830.0,101820.0,0.00014879]
[1737990642226,0.147304,101830.0,101820.0,0.00014879]
[1737990642433,0.156304,101830.0,101820.0,0.00014879]
[1737990642636,0.25365129,101830.0,101820.0,0.00014879]
[1737990643627,0.009,101830.0,101820.0,0.14746679]
[1737990643830,0.009,101830.0,101820.0,0.73502908]
[1737990644041,0.009,101830.0,101820.0,0.86364704]
[1737990644691,0.00732389,101860.0,101850.0,0.147275]
[1737990645374,0.54021015,101870.0,101850.0,0.147275]
[1737990645593,0.64864739,101870.0,101850.0,0.343636]
[1737990645847,0.63732629,101860.0,101830.0,0.392798]
[1737990646098,0.63732629,101860.0,101840.0,0.343665]
[1737990646341,0.09734729,101860.0,101850.0,0.147275]
[1737990646598,0.3549821,101870.0,101850.0,0.343639]
[1737990646865,0.25598039,101870.0,101850.0,0.539997]
[1737990647063,0.001,101860.0,101850.0,0.3976327]
[1737990647277,0.001,101860.0,101850.0,0.49497999]
[1737990647527,0.001,101860.0,101850.0,0.77307999]
[1737990647725,0.34359652,101840.0,101820.0,0.34402429]
[1737990647936,0.147304,101830.0,101820.0,0.00029029]
[1737990648153,0.24465129,101830.0,101820.0,0.00029029]
[1737990649129,0.24465129,101830.0,101820.0,0.00129029]
[1737990649622,0.24565129,101830.0,101820.0,0.00129029]
[1737990649845,0.24565129,101830.0,101820.0,0.00029029]
[1737990650069,0.24465129,101830.0,101820.0,0.00029029]
[1737990650286,0.009,101830.0,101820.0,0.34402829]
[1737990650527,0.009,101830.0,101820.0,0.37844527]
[1737990650778,0.25365129,101830.0,101820.0,0.03470727]
[1737990650994,0.25365129,101830.0,101820.0,0.00029029]
[1737990651424,0.25365129,101830.0,101820.0,0.14760829]
[1737990651599,0.156304,101830.0,101820.0,0.14760829]
[1737990651813,0.009,101830.0,101820.0,0.15160829]
[1737990652021,0.009,101830.0,101820.0,0.22080267]
[1737990652639,0.009,101830.0,101820.0,0.37080267]
[1737990652858,0.009,101830.0,101820.0,0.46814996]
[1737990653068,0.009,101830.0,101820.0,0.49114996]
[1737990653304,0.009,101830.0,101820.0,0.61254996]
[1737990653534,0.01093836,101870.0,101860.0,0.14726]
[1737990653751,0.00029715,101870.0,101860.0,0.241286]
[1737990656073,0.00029715,101870.0,101860.0,0.24498015]
[1737990656288,0.1642814,101890.0,101860.0,0.44131415]
[1737990656486,0.44104323,101880.0,101860.0,0.44131415]
[1737990656709,0.09749523,101880.0,101870.0,0.147246]
[1737990656938,0.24472723,101880.0,101870.0,0.22573572]
[1737990657168,0.00014794,101880.0,101870.0,0.22936499]
[1737990657388,0.14737994,101880.0,101870.0,0.22936499]
[1737990657604,0.14737994,101880.0,101870.0,0.08211899]
[1737990657809,0.14737994,101880.0,101870.0,0.00362927]
[1737990657810,0.24472723,101880.0,101870.0,0.00362927]
[1737990658437,0.51382206,101880.0,101870.0,0.00362927]
[1737990659483,0.23872723,101880.0,101870.0,0.00362927]
[1737990660143,0.23672723,101880.0,101870.0,0.00362927]
[1737990660347,0.65382206,101880.0,101870.0,0.00362927]
[1737990660549,0.64982206,101880.0,101870.0,0.00362927]
[1737990660969,0.23272723,101880.0,101870.0,0.00362927]
[1737990662317,0.70242147,101880.0,101870.0,0.00362927]
[1737990662533,0.196347,101860.0,101820.0,0.33795388]
[1737990662742,0.147304,101830.0,101820.0,0.48795388]
[1737990662954,0.24465129,101830.0,101820.0,0.06933588]
[1737990663164,0.24465129,101830.0,101820.0,0.0001415]
[1737990663367,0.09734729,101830.0,101820.0,0.1474595]
[1737990663576,0.147304,101830.0,101820.0,0.1474595]
[1737990663993,0.76172283,101860.0,101830.0,0.196392]
[1737990664195,0.76172283,101860.0,101840.0,0.343668]
[1737990664196,0.44197529,101860.0,101840.0,0.343668]
[1737990664406,0.147275,101850.0,101840.0,0.054006]
[1737990664615,0.24462229,101850.0,101840.0,0.054006]
[1737990664830,0.09734729,101850.0,101840.0,0.201295]
[1737990665044,0.55926868,101870.0,101850.0,0.147275]
[1737990665250,0.153239,101880.0,101870.0,0.147246]
[1737990665459,0.25058629,101880.0,101870.0,0.1963298]
[1737990665667,0.147239,101880.0,101870.0,0.0490838]
[1737990665880,0.1581121,101890.0,101880.0,0.14723]
[1737990666059,0.147232,101880.0,101870.0,0.0490838]
[1737990666322,0.50085039,101890.0,101870.0,0.1963298]
[1737990666538,0.01094361,101890.0,101880.0,0.147232]
[1737990666758,0.01094361,101890.0,101880.0,0.20121998]
[1737990666972,4.951e-05,101890.0,101880.0,0.20121998]
[1737990667441,4.951e-05,101890.0,101880.0,0.28321998]
[1737990667652,0.00904951,101890.0,101880.0,0.28321998]
[1737990668171,0.00904951,101890.0,101880.0,0.43321998]
[1737990668451,0.00029779,101910.0,101900.0,0.297203]
[1737990668709,0.00029779,101910.0,101900.0,0.48315399]
[1737990668947,0.00034731,101910.0,101900.0,0.50615399]
[1737990669203,0.00034731,101910.0,101900.0,0.48315399]
[1737990669923,0.00034731,101910.0,101900.0,0.50615399]
[1737990670156,0.00034731,101910.0,101900.0,0.50967253]
[1737990670396,0.00034731,101910.0,101900.0,0.51267253]
[1737990670816,0.00034731,101910.0,101900.0,0.78476736]
[1737990671037,0.00034731,101910.0,101900.0,0.86436736]
[1737990671259,0.00034731,101910.0,101900.0,0.90486736]
[1737990671891,0.00134731,101910.0,101900.0,0.90986736]
[1737990672383,0.00134731,101910.0,101900.0,0.62377253]
[1737990672826,0.00134731,101910.0,101900.0,0.52242524]
[1737990673035,0.00134731,101910.0,101900.0,0.37242524]
[1737990673244,0.00134731,101910.0,101900.0,0.37642524]
[1737990673452,0.00034731,101910.0,101900.0,0.51842524]
[1737990673879,0.14853531,101910.0,101900.0,0.22422224]
[1737990674099,0.00134731,101910.0,101900.0,0.38217253]
[1737990674344,0.00034731,101910.0,101900.0,0.28482524]
[1737990674555,0.00034731,101910.0,101900.0,0.80426736]
[1737990675184,0.00034731,101910.0,101900.0,0.53717253]
[1737990675387,0.00034731,101910.0,101900.0,0.53917253]
[1737990680468,0.00034731,101910.0,101900.0,0.44182524]
[1737990681195,0.00034731,101910.0,101900.0,0.53917253]
[1737990682031,0.00020621,101910.0,101900.0,0.53917253]
[1737990682237,0.00020621,101910.0,101900.0,0.44182524]
[1737990683361,0.01069981,101940.0,101910.0,0.196251]
[1737990683549,0.00029715,101950.0,101940.0,0.173]
[1737990683760,0.00049523,101950.0,101940.0,1.07777302]
[1737990684100,0.00029758,101980.0,101970.0,0.297102]
[1737990684304,0.00034708,101980.0,101970.0,0.79224412]
[1737990684515,0.00034708,101980.0,101970.0,0.81895484]
[1737990684734,8e-08,101980.0,101970.0,0.97779663]
[1737990684948,8e-08,101980.0,101970.0,0.91630213]
[1737990685181,8e-08,101980.0,101970.0,0.49885284]
[1737990685391,8e-08,101980.0,101970.0,0.00371072]
[1737990685601,0.12711337,101980.0,101970.0,0.00371072]
[1737990685818,0.12711337,101980.0,101970.0,0.01271072]
[1737990685819,0.12811337,101980.0,101970.0,0.01271072]
[1737990686030,0.27520037,101980.0,101970.0,0.01271072]
[1737990686258,0.12811337,101980.0,101970.0,0.01271072]
[1737990686475,0.24543437,101980.0,101970.0,0.01279768]
[1737990686692,0.27520037,101980.0,101970.0,0.01279768]
[1737990686896,0.24543437,101980.0,101970.0,0.01279768]
[1737990687106,0.09834737,101980.0,101970.0,0.15989968]
[1737990687765,8e-08,101980.0,101970.0,0.15089968]
[1737990687956,0.00400008,101980.0,101970.0,0.16542148]
[1737990688666,8e-08,101980.0,101970.0,0.43251631]
[1737990688874,8e-08,101980.0,101970.0,0.43351631]
[1737990689488,8e-08,101980.0,101970.0,0.41376877]
[1737990689774,8e-08,101980.0,101970.0,0.49676877]
[1737990690011,8e-08,101980.0,101970.0,0.39942148]
[1737990690412,8e-08,101980.0,101970.0,0.16642148]
[1737990690648,8e-08,101980.0,101970.0,0.15189968]
[1737990690649,0.24443437,101980.0,101970.0,0.15189968]
[1737990690838,8e-08,101980.0,101970.0,0.15189968]
[1737990690958,8e-08,101980.0,101970.0,0.15089968]
[1737990691398,0.24443437,101980.0,101970.0,0.15589968]
[1737990691633,0.09834737,101980.0,101970.0,0.16289968]
[1737990691832,0.24543437,101980.0,101970.0,0.15789968]
[1737990692078,0.24443437,101980.0,101970.0,0.15089968]
[1737990692378,0.24443437,101980.0,101970.0,0.15689968]
[1737990692609,0.24443437,101980.0,101970.0,0.1840251]
[1737990692811,8e-08,101980.0,101970.0,0.1820251]
[1737990693023,0.14708708,101980.0,101970.0,0.1820251]
[1737990693441,8e-08,101980.0,101970.0,0.1820251]
[1737990694099,0.14708708,101980.0,101970.0,0.1820251]
[1737990694309,8e-08,101980.0,101970.0,0.1820251]
[1737990694725,0.14708708,101980.0,101970.0,0.1820251]
[1737990695043,8e-08,101980.0,101970.0,0.1830251]
[1737990695244,8e-08,101980.0,101970.0,0.15189968]
[1737990695458,0.14708708,101980.0,101970.0,0.00479768]
[1737990695689,0.14708708,101980.0,101970.0,0.15189968]
[1737990695868,0.24443437,101980.0,101970.0,0.00479768]
[1737990696908,0.42318789,101980.0,101970.0,0.00479768]
[1737990697443,0.40343437,101980.0,101970.0,0.00015652]
[1737990697681,0.40343437,101980.0,101970.0,0.0031258]
[1737990697892,0.40757577,101980.0,101970.0,0.00015652]
[1737990698096,0.40757577,101980.0,101970.0,0.00316258]
[1737990698320,0.25757577,101980.0,101970.0,0.00015652]
[1737990698525,0.25357577,101980.0,101970.0,0.00316258]
[1737990698730,0.25361577,101980.0,101970.0,0.00316258]
[1737990698879,0.26161577,101980.0,101970.0,0.00416258]
[1737990699289,0.25261577,101980.0,101970.0,0.00400606]
[1737990699606,0.25361577,101980.0,101970.0,0.00400606]
[1737990699968,0.24461577,101980.0,101970.0,0.00300606]
[1737990700352,0.25361577,101980.0,101970.0,0.001]
[1737990700547,0.25361577,101980.0,101970.0,0.00400126]
[1737990701206,0.25761577,101980.0,101970.0,0.00400126]
[1737990702306,0.147144,101950.0,101920.0,0.13499167]
[1737990702517,0.147159,101930.0,101920.0,0.13499167]
[1737990703015,0.147159,101930.0,101920.0,0.08529167]
[1737990703278,0.26709483,101950.0,101920.0,0.08529167]
[1737990703279,0.196184,101950.0,101920.0,0.08529167]
[1737990703478,0.343288,101960.0,101940.0,0.147144]
[1737990703689,0.63680629,101960.0,101940.0,0.0490499]
[1737990703894,0.343262,101970.0,101950.0,0.14713]
[1737990704074,0.44060629,101970.0,101940.0,0.39242832]
[1737990704308,0.63675529,101970.0,101940.0,0.58861332]
[1737990704512,0.147117,101960.0,101940.0,0.58846425]
[1737990704714,0.147117,101960.0,101940.0,0.39228025]
[1737990704918,0.14713,101950.0,101940.0,0.04995225]
[1737990705125,0.14813,101950.0,101940.0,0.00104942]
[1737990705461,0.14713,101950.0,101940.0,0.00104942]
[1737990705638,0.64380629,101960.0,101940.0,0.00104942]
[1737990705847,0.007,101960.0,101950.0,0.14713]
[1737990706054,0.154116,101960.0,101950.0,0.04456917]
[1737990706265,0.007,101960.0,101950.0,0.19169917]
[1737990706464,0.007,101960.0,101950.0,0.04456917]
[1737990706671,0.154116,101960.0,101950.0,0.04456917]
[1737990706873,0.80649183,101970.0,101950.0,0.04456917]
[1737990707077,1.00264083,101970.0,101950.0,0.04456917]
[1737990707303,0.61334683,101970.0,101950.0,0.04456917]
[1737990707584,0.147116,101960.0,101950.0,0.04456917]
[1737990708010,0.80649283,101970.0,101950.0,0.04456917]
[1737990708392,0.147114,101970.0,101950.0,0.58504417]
[1737990708598,0.137114,101970.0,101950.0,0.66824417]
[1737990708806,0.33325,101970.0,101950.0,0.47207017]
[1737990709033,0.147116,101960.0,101950.0,0.12876917]
[1737990709264,0.80647883,101970.0,101950.0,0.19369617]
[1737990709507,0.147116,101960.0,101950.0,0.04556917]
[1737990709749,0.24446329,101960.0,101950.0,0.04556917]
[1737990709963,0.24446329,101960.0,101950.0,0.001]
[1737990710446,0.14713,101950.0,101940.0,0.00034615]
[1737990710658,0.66157212,101950.0,101940.0,0.00034615]
[1737990710870,0.71586562,101950.0,101940.0,0.00034615]